bitfinex-derivatives/quotes_SOLF0:USTF0_20250905
["timestamp","ask_amount","ask_price","bid_price","bid_amount"]
[1757107787954,8.14,204.38,204.28,3.35818124]
[1757107788151,8.14,204.38,204.23,7.76]
[1757107788455,8.14,204.38,204.31,0.03707689]
[1757107791761,7.47,204.36,204.31,0.03707689]
[1757107792259,3.35818124,204.37,204.31,0.03707689]
[1757107792455,7.47,204.36,204.31,0.03707689]
[1757107792655,3.35818124,204.37,204.31,0.03707689]
[1757107792851,7.47,204.36,204.31,0.03707689]
[1757107793056,3.35818124,204.37,204.31,0.03707689]
[1757107793258,7.47,204.36,204.31,0.03707689]
[1757107793459,3.35818124,204.37,204.31,0.03707689]
[1757107793760,7.47,204.36,204.31,0.03707689]
[1757107793959,3.35818124,204.37,204.31,0.03707689]
[1757107795764,7.47,204.36,204.31,0.03707689]
[1757107796359,7.47,204.36,204.19,7.35]
[1757107796360,3.35818124,204.32,204.19,7.35]
[1757107796566,10.82818124,204.32,204.21,7.35]
[1757107797066,10.82818124,204.32,204.23,7.35]
[1757107797264,10.82818124,204.32,204.24,4.43765192]
[1757107797464,7.47,204.32,204.25,4.43765192]
[1757107797664,0.03118598,204.3,204.23,7.35]
[1757107797860,0.03118598,204.3,204.25,7.35]
[1757107798065,0.03118598,204.3,204.24,3.35818124]
[1757107798265,7.47,204.36,204.25,11.7878978]
[1757107798462,0.03253731,204.29,204.25,7.35]
[1757107798766,0.03253731,204.29,204.24,3.35818124]
[1757107799059,0.03253731,204.29,204.25,4.4378978]
[1757107799262,0.03253731,204.29,204.24,3.35818124]
[1757107799461,0.03253731,204.29,204.26,7.35]
[1757107799863,7.47,204.33,204.26,7.35]
[1757107800063,0.03345747,204.3,204.26,7.35]
[1757107801062,0.03345747,204.3,204.22,7.35]
[1757107801369,7.47,204.29,204.23,4.43757144]
[1757107801565,7.47,204.29,204.22,7.35]
[1757107801566,0.03345747,204.3,204.22,7.35]
[1757107801767,0.03345747,204.3,204.24,7.35]
[1757107803566,7.50345747,204.3,204.19,7.35]
[1757107803766,7.50345747,204.3,204.2,4.43942044]
[1757107803767,7.47,204.28,204.2,4.43942044]
[1757107803969,7.47,204.28,204.21,4.43942044]
[1757107804169,7.47,204.28,204.19,7.35]
[1757107804170,0.03240744,204.26,204.19,7.35]
[1757107804468,0.03240744,204.26,204.2,4.44026613]
[1757107804669,0.03240744,204.26,204.19,7.35]
[1757107804864,3.39058868,204.26,204.19,7.35]
[1757107805666,10.86058868,204.26,204.19,7.35]
[1757107806271,7.50240744,204.26,204.19,7.35]
[1757107807565,0.03240744,204.26,204.2,4.44036377]
[1757107807769,0.03240744,204.26,204.21,4.44024328]
[1757107807971,0.03240744,204.26,204.2,3.35818124]
[1757107808173,0.03240744,204.26,204.21,4.44017553]
[1757107808372,0.03240744,204.26,204.23,7.35]
[1757107808770,0.03240744,204.26,204.23,3.35818124]
[1757107808967,0.03240744,204.26,204.24,4.43989952]
[1757107809173,0.03240744,204.26,204.23,3.35818124]
[1757107809376,0.03240744,204.26,204.25,7.35]
[1757107809571,7.47,204.35,204.25,11.79021747]
[1757107809776,7.47,204.38,204.27,7.35]
[1757107809972,7.47,204.38,204.28,4.43964283]
[1757107810172,7.47,204.38,204.27,7.35]
[1757107810371,7.47,204.38,204.28,4.43958146]
[1757107810572,7.47,204.38,204.28,3.35818124]
[1757107810777,7.47,204.38,204.29,11.7893667]
[1757107811074,7.47,204.38,204.31,0.03336713]
[1757107812068,12.85161371,204.43,204.32,7.35]
[1757107812264,7.47,204.43,204.32,7.35]
[1757107812675,7.47,204.43,204.35,0.03191614]
[1757107812977,7.47,204.43,204.35,7.38191614]
[1757107818072,7.47,204.5,204.41,7.35]
[1757107818775,7.47,204.5,204.43,0.03751682]
[1757107822571,7.47,204.5,204.43,7.40751682]
[1757107824075,7.47,204.5,204.43,0.03751682]
[1757107824672,7.37,204.54,204.44,7.37]
[1757107824979,7.37,204.58,204.44,7.37]
[1757107825683,7.37,204.58,204.49,7.40252026]
[1757107831085,0.03396888,204.56,204.49,7.40252026]
[1757107834985,0.03396888,204.56,204.5,7.37]
[1757107845689,0.03396888,204.56,204.51,129.34]
[1757107845884,0.03396888,204.56,204.52,7.37]
[1757107846092,0.03396888,204.56,204.51,129.34]
[1757107846297,0.03396888,204.56,204.52,7.37]
[1757107846692,0.03396888,204.56,204.51,129.34]
[1757107847197,0.03396888,204.56,204.52,7.37]
[1757107847490,0.03396888,204.56,204.51,129.34]
[1757107847794,0.03396888,204.56,204.52,7.37]
[1757107847990,0.03396888,204.56,204.49,0.03252026]
[1757107848193,0.03396888,204.56,204.54,7.37]
[1757107848396,7.99,204.71,204.54,7.37]
[1757107848597,7.99,204.71,204.58,7.63]
[1757107848797,7.99,204.71,204.59,121.22]
[1757107849497,7.99,204.71,204.63,0.03104871]
[1757107855503,7.99,204.71,204.63,7.66104871]
[1757107856702,7.99,204.76,204.63,5.38588348]
[1757107856899,7.99,204.76,204.64,7.63]
[1757107857306,7.99,204.76,204.68,0.03524746]
[1757107861400,2.13938156,204.75,204.68,0.03524746]
[1757107861607,7.99,204.74,204.68,0.03524746]
[1757107861900,2.13938156,204.73,204.68,0.03524746]
[1757107862105,2.13938156,204.71,204.68,0.03524746]
[1757107862507,7.99,204.7,204.63,2.13938156]
[1757107862806,7.99,204.7,204.67,0.0362028]
[1757107863007,7.99,204.71,204.67,0.0362028]
[1757107863211,2.13938156,204.72,204.67,0.0362028]
[1757107863503,7.99,204.78,204.67,9.80558436]
[1757107863696,14.7,204.81,204.67,9.80558436]
[1757107863697,7.99,204.75,204.67,9.80558436]
[1757107864106,7.99,204.75,204.67,9.76938156]
[1757107864304,7.99,204.75,204.69,0.03462168]
[1757107869117,7.99,204.75,204.69,7.66462168]
[1757107869814,7.99,204.82,204.69,7.66462168]
[1757107870220,7.99,204.82,204.69,7.63]
[1757107870414,7.99,204.82,204.73,0.03171986]
[1757107872121,13.37161371,204.82,204.73,0.03171986]
[1757107873916,7.99,204.82,204.73,0.03171986]
[1757107875411,320.38161371,204.84,204.73,0.03171986]
[1757107878517,21.0098934,204.96,204.73,0.03171986]
[1757107878518,5.38161371,204.93,204.76,5.34866597]
[1757107878712,5.38161371,204.92,204.76,5.34866597]
[1757107878916,58.12161371,204.93,204.76,5.34866597]
[1757107879117,58.12161371,204.93,204.82,0.03109394]
[1757107879317,52.74,204.93,204.82,0.03109394]
[1757107880519,5.34866597,204.9,204.82,0.03109394]
[1757107881124,58.12161371,204.93,204.82,0.03109394]
[1757107881324,5.34866597,204.92,204.82,0.03109394]
[1757107884425,7.72,204.91,204.82,0.03109394]
[1757107887428,2.13687753,204.87,204.82,0.03109394]
[1757107887628,7.72,204.86,204.82,7.48109394]
[1757107887824,7.72,204.92,204.82,0.03109394]
[1757107888025,2.13687753,204.87,204.82,0.03109394]
[1757107888225,7.72,204.86,204.82,0.03109394]
[1757107888829,2.13687753,204.87,204.82,0.03109394]
[1757107889017,2.13687753,204.83,204.82,0.03109394]
[1757107889223,9.85687753,204.83,204.82,0.03109394]
[1757107889521,9.85687753,204.83,204.71,9.58687753]
[1757107889729,2.13687753,204.76,204.71,7.45]
[1757107889931,2.13687753,204.76,204.7,7.45]
[1757107890230,2.13687753,204.74,204.68,7.45]
[1757107890526,2.13687753,204.7,204.64,7.45]
[1757107890727,2.13687753,204.68,204.64,7.45]
[1757107890928,2.13687753,204.68,204.65,0.037396]
[1757107891123,2.13687753,204.7,204.66,7.45]
[1757107893230,9.85687753,204.7,204.66,7.45]
[1757107893932,2.13687753,204.68,204.65,0.037396]
[1757107894331,9.85687753,204.66,204.65,0.037396]
[1757107895426,7.72,204.74,204.65,0.037396]
[1757107895634,9.85687753,204.69,204.65,0.037396]
[1757107895828,2.13687753,204.69,204.65,0.037396]
[1757107896133,7.72,204.68,204.65,0.037396]
[1757107897227,2.13687753,204.69,204.65,0.037396]
[1757107897827,7.72,204.68,204.65,0.037396]
[1757107898023,2.13687753,204.69,204.65,0.037396]
[1757107898227,7.72,204.68,204.65,0.037396]
[1757107899330,2.13687753,204.67,204.65,0.037396]
[1757107899533,7.72,204.66,204.65,0.037396]
[1757107900829,9.85687753,204.71,204.65,0.037396]
[1757107901231,9.85687753,204.71,204.64,2.13687753]
[1757107901432,9.85687753,204.71,204.66,0.03405305]
[1757107901627,7.72,204.75,204.68,2.13687753]
[1757107902435,7.72,204.75,204.69,0.03627222]
[1757107902937,7.72,204.75,204.7,9.58687753]
[1757107903434,7.72,204.75,204.71,7.45]
[1757107904536,9.85687753,204.79,204.71,7.45]
[1757107905435,7.72,204.79,204.71,7.45]
[1757107905737,7.72,204.79,204.69,0.03627222]
[1757107905937,7.72,204.79,204.7,7.45]
[1757107910636,5.38161371,204.85,204.7,7.45]
[1757107910943,7.54,204.82,204.7,7.45]
[1757107911139,7.54,204.82,204.75,0.03389372]
[1757107912442,7.54,204.82,204.76,8.12]
[1757107912641,138.90175018,204.86,204.76,8.12]
[1757107914346,138.86175018,204.86,204.76,8.12]
[1757107916643,3.34175018,204.79,204.75,0.03389372]
[1757107916840,3.34175018,204.76,204.75,0.03389372]
[1757107917045,10.88175018,204.76,204.61,8.12]
[1757107917343,10.88175018,204.73,204.62,4.45306034]
[1757107917543,7.54,204.73,204.63,4.45306034]
[1757107917744,7.54,204.73,204.61,8.12]
[1757107918246,0.0321446,204.69,204.61,8.12]
[1757107918441,7.5721446,204.69,204.55,8.12]
[1757107918646,7.54,204.68,204.56,4.45359671]
[1757107918848,7.54,204.68,204.57,4.45359671]
[1757107919047,0.0318048,204.64,204.55,8.12]
[1757107919347,0.0318048,204.64,204.56,4.45270369]
[1757107919545,0.0318048,204.64,204.57,4.45270369]
[1757107919744,0.0318048,204.64,204.55,8.12]
[1757107919943,0.0318048,204.64,204.56,4.45270369]
[1757107920144,0.0318048,204.64,204.58,8.12]
[1757107920940,0.0318048,204.64,204.59,4.45185978]
[1757107921148,0.0318048,204.64,204.58,0.48]
[1757107921340,7.54,204.73,204.6,8.12]
[1757107921545,7.54,204.78,204.64,8.12]
[1757107922644,7.54,204.78,204.69,0.03300724]
[1757107923446,46.32161371,204.83,204.69,0.03300724]
[1757107923447,7.54,204.75,204.69,0.03300724]
[1757107923648,7.54,204.73,204.69,0.03300724]
[1757107923842,7.54,204.73,204.59,8.12]
[1757107924045,7.54,204.73,204.69,0.03437144]
[1757107924247,40.36,204.74,204.59,8.12]
[1757107924551,7.54,204.73,204.69,0.03129959]
[1757107925049,7.54,204.71,204.59,8.12]
[1757107926452,0.03222816,204.67,204.59,8.12]
[1757107928455,0.03222816,204.67,204.61,8.12]
[1757107928653,0.03222816,204.67,204.63,8.12]
[1757107929049,0.03222816,204.67,204.62,8.69624195]
[1757107929250,0.03222816,204.67,204.63,4.45284955]
[1757107929457,0.03222816,204.67,204.64,12.57284955]
[1757107929652,0.03222816,204.67,204.63,8.12]
[1757107929855,0.03222816,204.67,204.65,8.12]
[1757107930057,0.03222816,204.67,204.62,8.69624195]
[1757107930255,0.03222816,204.67,204.63,4.45428808]
[1757107930564,0.03222816,204.67,204.65,8.12]
[1757107930858,0.03222816,204.67,204.63,8.12]
[1757107931160,0.03222816,204.67,204.64,4.45472956]
[1757107931362,0.03222816,204.67,204.63,8.12]
[1757107931553,0.03222816,204.67,204.64,4.45632203]
[1757107931750,0.03222816,204.67,204.62,8.69624195]
[1757107931953,0.03222816,204.67,204.63,4.45632203]
[1757107932155,0.03222816,204.67,204.65,8.12]
[1757107932359,0.03222816,204.67,204.63,8.12]
[1757107932556,0.03222816,204.67,204.62,8.69624195]
[1757107932557,0.03222816,204.67,204.64,4.4579225]
[1757107932758,0.03222816,204.67,204.66,8.12]
[1757107933253,0.03222816,204.67,204.63,8.12]
[1757107933459,0.03222816,204.67,204.54,8.12]
[1757107933661,7.54,204.67,204.55,4.46086097]
[1757107933956,0.03469827,204.63,204.56,4.46086097]
[1757107934161,0.03469827,204.63,204.58,8.12]
[1757107934360,0.03469827,204.63,204.57,8.12]
[1757107934665,0.03469827,204.63,204.58,4.46258647]
[1757107934863,0.03469827,204.63,204.6,8.12]
[1757107936061,0.03469827,204.63,204.55,8.12]
[1757107936255,0.03469827,204.63,204.56,4.4620618]
[1757107936454,0.03469827,204.63,204.57,4.4620618]
[1757107936651,0.03469827,204.63,204.58,4.4620618]
[1757107936854,5.38161371,204.73,204.6,8.12]
[1757107937055,7.54,204.78,204.62,8.12]
[1757107937250,7.54,204.78,204.64,8.12]
[1757107937459,7.54,204.78,204.65,4.4541646]
[1757107937761,7.54,204.78,204.64,8.12]
[1757107937956,7.54,204.78,204.65,4.45291102]
[1757107938259,7.54,204.78,204.69,0.03408183]
[1757107938861,7.39,204.82,204.7,7.75]
[1757107939451,7.39,204.82,204.74,0.03268374]
[1757107946457,12.77161371,204.82,204.74,0.03268374]
[1757107946658,5.38161371,204.82,204.74,0.03268374]
[1757107946856,5.38161371,204.82,204.75,7.75]
[1757107947055,7.39,204.85,204.75,7.75]
[1757107950766,7.39,204.85,204.74,0.03268374]
[1757107951557,7.39,204.85,204.74,7.78268374]
[1757107952157,12.77161371,204.85,204.74,0.03268374]
[1757107952458,7.39,204.83,204.74,0.03268374]
[1757107952662,96.81161371,204.83,204.74,0.03268374]
[1757107952858,96.81161371,204.83,204.7,7.75]
[1757107953168,96.81161371,204.83,204.76,0.03468833]
[1757107953963,105.50785566,204.83,204.76,0.03468833]
[1757107954163,7.39,204.81,204.76,0.03468833]
[1757107954767,12.77161371,204.81,204.76,0.03468833]
[1757107955166,5.38161371,204.8,204.76,0.03468833]
[1757107955366,7.39,204.79,204.76,0.03468833]
[1757107955567,5.38161371,204.81,204.76,0.03468833]
[1757107955771,7.39,204.84,204.76,0.03468833]
[1757107956072,0.03218191,204.82,204.76,0.03468833]
[1757107956869,0.03218191,204.82,204.76,7.78468833]
[1757107970277,0.03218191,204.82,204.76,0.03468833]
[1757107970773,7.44,204.81,204.76,0.03468833]
[1757107970973,0.03218191,204.82,204.76,0.03468833]
[1757107971775,0.03218191,204.82,204.76,7.42468833]
[1757107971977,0.03218191,204.82,204.78,7.39]
[1757107974078,0.03218191,204.82,204.77,5.34294024]
[1757107974681,0.03218191,204.82,204.78,7.39]
[1757107974881,0.03218191,204.82,204.77,5.34294024]
[1757107975082,0.03218191,204.82,204.78,7.39]
[1757107975276,0.03218191,204.82,204.77,5.34294024]
[1757107975582,0.03218191,204.82,204.78,7.39]
[1757107975882,0.03218191,204.82,204.77,7.39]
[1757107976075,0.03218191,204.82,204.76,5.37762857]
[1757107976673,0.03218191,204.82,204.77,7.39]
[1757107978884,0.03218191,204.82,204.76,9.77252857]
[1757107979083,0.03218191,204.82,204.77,7.39]
[1757107979284,0.03218191,204.82,204.76,5.37762857]
[1757107980085,0.03218191,204.82,204.77,7.39]
[1757107980288,0.03218191,204.82,204.76,0.03468833]
[1757107981187,0.03218191,204.82,204.77,4.46692612]
[1757107981396,0.03218191,204.82,204.76,0.03468833]
[1757107981586,0.03218191,204.82,204.76,7.42468833]
[1757107982188,0.03218191,204.82,204.77,4.46817188]
[1757107982389,0.03218191,204.82,204.76,7.42468833]
[1757107982590,0.03218191,204.82,204.78,7.39]
[1757107982791,0.03218191,204.82,204.76,0.03468833]
[1757107984097,0.03218191,204.82,204.78,7.39]
[1757107984394,0.03218191,204.82,204.77,7.39]
[1757107984598,0.03218191,204.82,204.78,4.46953205]
[1757107984792,0.03218191,204.82,204.76,0.03468833]
[1757107984997,0.03218191,204.82,204.78,7.39]
[1757107985198,0.03218191,204.82,204.77,7.39]
[1757107985402,0.03218191,204.82,204.79,7.39]
[1757107985595,0.03218191,204.82,204.76,0.03468833]
[1757107985798,7.47218191,204.82,204.77,11.8599354]
[1757107985996,7.47218191,204.82,204.77,7.39]
[1757107986396,7.44,204.81,204.77,7.39]
[1757107988601,9.6098392,204.82,204.76,0.03468833]
[1757107989593,7.44,204.79,204.76,0.03468833]
[1757107990299,2.13765729,204.8,204.76,0.03468833]
[1757107990501,2.13765729,204.78,204.76,0.03468833]
[1757107990701,7.44,204.77,204.76,0.03468833]
[1757107991802,7.44,204.79,204.76,0.03468833]
[1757107992198,2.13765729,204.8,204.76,0.03468833]
[1757107992399,7.44,204.79,204.76,0.03468833]
[1757107992600,2.13765729,204.8,204.76,0.03468833]
[1757107992800,7.44,204.79,204.76,0.03468833]
[1757107993201,2.1698392,204.82,204.76,0.03468833]
[1757107993402,2.1698392,204.82,204.76,2.17234562]
[1757107993803,0.03218191,204.82,204.76,2.17234562]
[1757107994005,0.03218191,204.82,204.76,0.03468833]
[1757107994199,0.03218191,204.82,204.76,2.17234562]
[1757107997710,0.03218191,204.82,204.76,9.56234562]
[1757107998712,8.07218191,204.82,204.78,8.0]
[1757107998914,0.03218191,204.82,204.78,2.13765729]
[1757107999217,0.03218191,204.82,204.79,8.0]
[1757108002216,0.03218191,204.82,204.77,2.13765729]
[1757108002217,8.04,204.79,204.76,0.03468833]
[1757108002412,8.04,204.77,204.76,0.03468833]
[1757108003316,8.52,204.77,204.76,0.03468833]
[1757108003524,8.52,204.77,204.65,8.0]
[1757108003818,2.13765729,204.72,204.66,4.40661702]
[1757108004019,2.13765729,204.72,204.68,8.0]
[1757108004221,2.13765729,204.72,204.69,4.40661702]
[1757108004420,2.13765729,204.72,204.7,4.40661702]
[1757108004721,2.13765729,204.72,204.68,8.0]
[1757108004918,2.13765729,204.72,204.69,4.40456613]
[1757108005118,2.13765729,204.72,204.7,4.40456613]
[1757108005320,2.13765729,204.72,204.68,8.0]
[1757108005516,8.07419417,204.73,204.69,4.40288235]
[1757108005823,8.07419417,204.73,204.68,8.0]
[1757108006024,8.07419417,204.73,204.69,4.40288453]
[1757108006224,8.07419417,204.73,204.68,8.0]
[1757108006431,8.07419417,204.73,204.69,4.40118364]
[1757108006724,8.07419417,204.73,204.68,8.0]
[1757108006925,8.07419417,204.73,204.69,4.40118364]
[1757108007225,8.07419417,204.73,204.68,8.0]
[1757108007625,0.03419417,204.73,204.69,4.39945114]
[1757108007924,13.39002824,204.77,204.6,7.64]
[1757108007925,13.39002824,204.77,204.61,8.0]
[1757108008120,0.03462589,204.73,204.63,8.0]
[1757108008322,0.03462589,204.73,204.65,8.0]
[1757108008521,0.03462589,204.73,204.66,4.39944787]
[1757108008722,8.04,204.74,204.67,4.39944787]
[1757108008926,0.03525285,204.72,204.68,12.39944787]
[1757108009227,0.03525285,204.72,204.68,8.0]
[1757108009621,0.03525285,204.72,204.59,5.35002824]
[1757108009622,8.07525285,204.72,204.6,8.0]
[1757108009923,8.04,204.72,204.61,4.39775544]
[1757108010123,0.03329063,204.68,204.62,4.39775544]
[1757108010325,8.07329063,204.68,204.63,12.39775544]
[1757108010524,8.04,204.67,204.63,8.0]
[1757108010923,8.07213019,204.67,204.63,8.0]
[1757108011120,0.03213019,204.67,204.52,14.1401]
[1757108011324,0.03213019,204.67,204.54,8.0]
[1757108011529,8.04,204.68,204.56,8.0]
[1757108011732,0.03118113,204.63,204.57,4.39196449]
[1757108012031,0.03118113,204.63,204.53,5.35002824]
[1757108012032,0.03118113,204.63,204.58,4.39196449]
[1757108012328,0.03118113,204.63,204.54,8.0]
[1757108012531,0.03118113,204.63,204.56,8.0]
[1757108012731,0.03118113,204.63,204.5,5.35002824]
[1757108012923,0.03118113,204.63,204.52,8.0]
[1757108013127,8.04,204.66,204.54,8.0]
[1757108013430,0.03113305,204.6,204.56,8.0]
[1757108013630,0.03113305,204.6,204.51,8.0]
[1757108013830,0.03113305,204.6,204.53,8.0]
[1757108014028,0.03113305,204.6,204.54,4.38613338]
[1757108014327,0.03113305,204.6,204.5,5.35002824]
[1757108014328,0.03113305,204.6,204.55,4.38613338]
[1757108014532,0.03113305,204.6,204.51,8.0]
[1757108014736,0.03113305,204.6,204.53,8.0]
[1757108014931,0.03113305,204.6,204.54,4.38370229]
[1757108015130,0.03113305,204.6,204.53,8.0]
[1757108015432,0.03113305,204.6,204.54,4.38113734]
[1757108015631,0.03113305,204.6,204.51,8.0]
[1757108015828,0.03113305,204.6,204.53,8.0]
[1757108016028,0.03113305,204.6,204.54,4.38113734]
[1757108016231,0.03113305,204.6,204.53,8.0]
[1757108016732,8.07113305,204.6,204.53,8.0]
[1757108018930,8.04,204.59,204.45,68.92]
[1757108019233,8.04,204.59,204.47,8.0]
[1757108019435,0.0309192,204.54,204.47,8.0]
[1757108020030,0.0309192,204.54,204.49,8.0]
[1757108020535,0.0309192,204.54,204.46,13.35002824]
[1757108020835,0.0309192,204.54,204.48,8.0]
[1757108023435,8.04,204.63,204.48,8.0]
[1757108023937,8.04,204.63,204.52,8.0]
[1757108024231,8.04,204.63,204.53,8.0]
[1757108024631,8.04,204.63,204.56,0.03164276]
[1757108032336,8.70202551,204.71,204.56,0.03164276]
[1757108032538,7.42,204.68,204.56,7.62164276]
[1757108032834,7.42,204.68,204.6,0.03294657]
[1757108035540,7.42,204.68,204.6,7.62294657]
[1757108036638,7.42,204.68,204.6,0.03294657]
[1757108041139,7.42,204.64,204.6,0.03294657]
[1757108041341,7.42,204.62,204.6,0.03294657]
[1757108041542,126.56,204.63,204.6,0.03294657]
[1757108041743,7.42,204.62,204.6,0.03294657]
[1757108043543,7.9,204.62,204.6,0.03294657]
[1757108043742,9.18202551,204.61,204.47,7.59]
[1757108043943,7.42,204.6,204.47,7.59]
[1757108044362,7.42,204.56,204.47,7.59]
[1757108044543,37.3,204.55,204.47,7.59]
[1757108045144,7.42,204.52,204.47,7.59]
[1757108045348,7.42,204.52,204.37,7.59]
[1757108046144,0.03335755,204.47,204.37,7.59]
[1757108050853,10.77211532,204.46,204.37,7.59]
[1757108053142,10.77211532,204.46,204.32,318.15211532]
[1757108053143,7.42,204.42,204.33,7.59]
[1757108053749,0.03720534,204.4,204.33,7.59]
[1757108060650,3.38932066,204.4,204.33,7.59]
[1757108060847,7.41,204.39,204.33,7.59]
[1757108062056,7.41,204.39,204.27,7.33]
[1757108062654,0.03669072,204.35,204.27,7.33]
[1757108067555,7.41,204.34,204.27,7.33]
[1757108069058,10.76211532,204.34,204.27,7.33]
[1757108071665,3.35211532,204.33,204.27,7.33]
[1757108072962,7.41,204.34,204.27,7.33]
[1757108073167,3.35211532,204.33,204.27,7.33]
[1757108073661,0.03669072,204.35,204.27,7.33]
[1757108073863,3.38880604,204.35,204.27,7.33]
[1757108079276,10.79880604,204.35,204.27,7.33]
[1757108080467,10.76211532,204.32,204.24,7.33]
[1757108081069,0.03397233,204.3,204.24,7.33]
[1757108081272,3.38608765,204.3,204.24,7.33]
[1757108082076,10.79608765,204.3,204.24,7.33]
[1757108083975,10.79608765,204.3,204.14,22.55211532]
[1757108083976,10.79608765,204.3,204.15,7.33]
[1757108084372,10.76211532,204.3,204.15,7.33]
[1757108084676,0.03630432,204.25,204.15,7.33]
[1757108086173,10.76211532,204.24,204.15,7.33]
[1757108088078,7.41,204.24,204.15,7.33]
[1757108088276,10.76211532,204.24,204.15,7.33]
[1757108089478,2.15065182,204.21,204.15,7.33]
[1757108090082,0.03390342,204.2,204.12,2.15065182]
[1757108090278,0.03390342,204.2,204.13,7.69]
[1757108091481,2.18455524,204.2,204.13,7.69]
[1757108092078,2.15065182,204.18,204.1,2.15065182]
[1757108092279,2.15065182,204.18,204.11,7.69]
[1757108094986,2.15065182,204.16,204.09,7.69]
[1757108095479,0.03140722,204.15,204.09,7.69]
[1757108096880,0.03140722,204.15,204.06,315.36]
[1757108096881,0.03140722,204.15,204.1,2.15065182]
[1757108097387,0.03140722,204.15,204.11,7.69]
[1757108097585,0.03140722,204.15,204.1,2.15065182]
[1757108097878,0.03140722,204.15,204.11,7.69]
[1757108098480,0.03140722,204.15,204.1,2.15065182]
[1757108098681,0.03140722,204.15,204.11,7.69]
[1757108099185,0.03140722,204.15,204.1,2.15065182]
[1757108099581,0.03140722,204.15,204.11,7.69]
[1757108099780,0.03140722,204.15,204.1,2.15065182]
[1757108100182,0.03140722,204.15,204.11,7.69]
[1757108100378,0.03140722,204.15,204.1,2.15065182]
[1757108101684,0.03140722,204.15,204.11,7.69]
[1757108101888,0.03140722,204.15,204.1,2.15065182]
[1757108102089,0.03140722,204.15,204.11,7.69]
[1757108102787,0.03140722,204.15,204.1,2.15065182]
[1757108103289,0.03140722,204.15,204.11,7.69]
[1757108103691,0.03140722,204.15,204.08,2.15065182]
[1757108103887,0.03140722,204.15,204.09,7.69]
[1757108109798,0.03140722,204.15,204.06,7.69]
[1757108109999,2.15065182,204.14,204.06,7.69]
[1757108110898,0.03140722,204.15,204.08,7.69]
[1757108111600,2.18205904,204.15,204.08,7.69]
[1757108114398,8.07,204.09,203.96,2.15065182]
[1757108114604,8.07,204.14,204.02,7.69]
[1757108114795,2.15065182,204.11,204.02,9.84065182]
[1757108115098,0.03223825,204.1,204.03,7.69]
[1757108115797,2.15065182,204.09,204.03,7.69]
[1757108116002,2.15065182,204.07,204.03,7.69]
[1757108116199,10.22065182,204.07,204.03,7.69]
[1757108116504,2.15065182,204.05,203.98,7.69]
[1757108117106,0.03625867,204.04,203.98,7.69]
[1757108117708,2.15065182,204.03,203.95,7.69]
[1757108118205,2.15065182,204.01,203.95,7.69]
[1757108120608,2.15065182,203.99,203.92,7.44]
[1757108121205,0.03658353,203.98,203.92,7.44]
[1757108122703,2.18723535,203.98,203.92,7.44]
[1757108123099,0.03658353,203.98,203.94,7.44]
[1757108123406,0.03658353,203.98,203.95,2.15065182]
[1757108123805,0.03658353,203.98,203.96,7.44]
[1757108124002,0.03658353,203.98,203.9,125.82]
[1757108124208,0.03658353,203.98,203.93,2.15065182]
[1757108124705,0.03658353,203.98,203.94,7.44]
[1757108125007,0.03658353,203.98,203.93,2.15065182]
[1757108125209,0.03658353,203.98,203.94,7.44]
[1757108125603,0.03658353,203.98,203.93,2.15065182]
[1757108126004,0.03658353,203.98,203.94,7.44]
[1757108126705,0.03658353,203.98,203.9,125.78]
[1757108126706,0.03658353,203.98,203.92,2.15065182]
[1757108126904,0.03658353,203.98,203.93,7.44]
[1757108127106,0.03658353,203.98,203.92,2.15065182]
[1757108127311,0.03658353,203.98,203.93,7.44]
[1757108127612,0.03658353,203.98,203.96,2.15065182]
[1757108127810,0.03658353,203.98,203.97,7.44]
[1757108128710,7.56,204.09,203.97,7.44]